[Event "EYCC Girls-U14 2019"]
[Site "Bratislava"]
[Date "2019.08.09"]
[Round "8.6"]
[White "Tsotsonava, Elene"]
[Black "Sovina, Maria"]
[Result "1-0"]
[ECO "B33"]
[WhiteElo "1878"]
[BlackElo "1757"]
[Annotator "NA"]
[PlyCount "67"]
[EventDate "2019.08.02"]
[EventType "swiss"]
[EventCountry "SVK"]
[SourceTitle "playchess.com"]
[Source "ChessBase"]
[SourceQuality "1"]
[TimeControl "40/5400+30:1800+30"]

1. e4 {[%emt 0:00:00]} c5 {[%emt 0:00:00]} 2. Nf3 {[%emt 0:00:00]} Nc6 {[%emt 0:00:00]} 3. d4 {[%emt 0:00:00]} cxd4 {[%emt 0:00:00]} 4. Nxd4 {[%emt 0:00:09]} Nf6 {[%emt 0:00:00]} 5. Nc3 {[%emt 0:00:17]} e5 {[%emt 0:00:00]} 6. Ndb5 {[%emt 0:00:12]} d6 {[%emt 0:00:00]} 7. Bg5 {[%emt 0:00:21]} a6 {[%emt 0:00:00]} 8. Na3 {[%emt 0:00:17]} b5 {[%emt 0:00:00]} 9. Nd5 {[%emt 0:00:16]} Be7 {[%emt 0:00:01]} 10. Bxf6 {[%emt 0:00:08]} Bxf6 {[%emt 0:00:04]} 11. c3 {[%emt 0:00:24]} Bg5 {[%emt 0:00:04]} 12. Nc2 {[%emt 0:00:14]} O-O {[%emt 0:00:04]} 13. a4 {[%emt 0:00:16]} bxa4 {[%emt 0:00:04]} 14. Rxa4 {[%emt 0:00:32]} a5 {[%emt 0:00:03]} 15. Bc4 {[%emt 0:00:26]} Rb8 {[%emt 0:00:04]} 16. b3 {[%emt 0:00:10]} Kh8 {[%emt 0:00:04]} 17. Nce3 {[%emt 0:00:29]} Be6 {[%emt 0:15:35]} 18. h4 {[%emt 0:10:06]} Bxe3 {[%emt 0:10:56]} 19. Nxe3 {[%emt 0:00:33]} Qb6 {[%emt 0:02:27]} 20. O-O {[%emt 0:17:23]} Bxc4 {[%emt 0:22:03]} 21. Rxc4 {[%emt 0:10:24]} Ne7 {[%emt 0:02:47]} 22. Qd3 {[%emt 0:09:18]} Ng6 {[%emt 0:06:02]} 23. g3 {[%emt 0:03:52]} Qxb3 {[%emt 0:06:36]} 24. h5 {[%emt 0:04:19]} Ne7 {[%emt 0:02:43]} 25. Qxd6 {[%emt 0:00:31]} Rfe8 {[%emt 0:05:06]} 26. h6 {[%emt 0:05:09]} f6 {[%emt 0:12:37]} 27. hxg7+ {[%emt 0:05:17]} Kxg7 {[%emt 0:00:01]} 28. Rc7 {[%emt 0:03:52]} Rb7 {[%emt 0:00:08]} 29. Nd5 {[%emt 0:04:59]} Rxc7 {[%emt 0:01:21]} 30. Qxf6+ {[%emt 0:00:17]} Kg8 {[%emt 0:00:01]} 31. Nxc7 {[%emt 0:00:19]} Rf8 {[%emt 0:01:25]} 32. Qxe7 {[%emt 0:00:28]} a4 {[%emt 0:00:03]} 33. Ne6 {[%emt 0:00:11]} Rf7 {[%emt 0:00:08]} 34. Qe8+ {[%emt 0:00:05]} 1-0

[Event "EYCC Girls-U14 2019"]
[Site "Bratislava"]
[Date "2019.08.09"]
[Round "8.7"]
[White "Tarasenka, Aliaksandra"]
[Black "Obrochta, Lena"]
[Result "1-0"]
[ECO "B41"]
[WhiteElo "2231"]
[BlackElo "1598"]
[Annotator "NA"]
[PlyCount "55"]
[EventDate "2019.08.02"]
[EventType "swiss"]
[EventCountry "SVK"]
[SourceTitle "playchess.com"]
[Source "ChessBase"]
[SourceQuality "1"]
[TimeControl "40/5400+30:1800+30"]

1. e4 {[%emt 0:00:00]} c5 {[%emt 0:00:00]} 2. Nf3 {[%emt 0:00:00]} e6 {[%emt 0:00:00]} 3. d4 {[%emt 0:00:00]} cxd4 {[%emt 0:00:00]} 4. Nxd4 {[%emt 0:00:00]} a6 {[%emt 0:00:00]} 5. Qf3 {[%emt 0:00:27]} Qc7 {[%emt 0:03:33]} 6. Nc3 {[%emt 0:02:30]} Nf6 {[%emt 0:01:29]} 7. Be3 {[%emt 0:05:14]} Be7 {[%emt 0:03:21]} 8. O-O-O {[%emt 0:05:00]} O-O {[%emt 0:02:28]} 9. g4 {[%emt 0:06:17]} d6 {[%emt 0:07:05]} 10. h4 {[%emt 0:08:47]} Nc6 {[%emt 0:06:01]} 11. g5 {[%emt 0:05:26]} Nd7 {[%emt 0:12:07]} 12. h5 {[%emt 0:04:09]} Nc5 {[%emt 0:11:12]} 13. Qg3 {[%emt 0:12:53]} b5 {[%emt 0:18:11]} 14. Ndxb5 {[%emt 0:22:08]} axb5 {[%emt 0:05:45]} 15. Bxc5 {[%emt 0:00:34]} b4 {[%emt 0:07:47]} 16. Bxd6 {[%emt 0:04:50]} Bxd6 {[%emt 0:03:09]} 17. Qxd6 {[%emt 0:00:45]} Qb6 {[%emt 0:00:32]} 18. Nb1 {[%emt 0:14:52]} Rxa2 {[%emt 0:02:22]} 19. Bc4 {[%emt 0:02:45]} Ra1 {[%emt 0:01:49]} 20. g6 {[%emt 0:01:30]} Rd8 {[%emt 0:05:11]} 21. Qxc6 {[%emt 0:00:11]} Qa5 {[%emt 0:05:21]} 22. Qb5 {[%emt 0:00:35]} Qc7 {[%emt 0:00:43]} 23. Qe5 {[%emt 0:01:00]} Qb6 {[%emt 0:01:39]} 24. h6 {[%emt 0:00:44]} f6 {[%emt 0:01:04]} 25. Bxe6+ {[%emt 0:00:21]} Kf8 {[%emt 0:00:55]} 26. Rxd8+ {[%emt 0:00:26]} Qxd8 {[%emt 0:00:11]} 27. Qc5+ {[%emt 0:00:12]} Ke8 {[%emt 0:00:48]} 28. Bf7+ {[%emt 0:00:07]} 1-0

[Event "EYCC Girls-U14 2019"]
[Site "Bratislava"]
[Date "2019.08.09"]
[Round "8.8"]
[White "Kasaeva, Sofiia"]
[Black "Bondareva, Daria"]
[Result "1/2-1/2"]
[ECO "C41"]
[WhiteElo "1897"]
[BlackElo "1998"]
[Annotator "NA"]
[PlyCount "93"]
[EventDate "2019.08.02"]
[EventType "swiss"]
[EventCountry "SVK"]
[SourceTitle "playchess.com"]
[Source "ChessBase"]
[SourceQuality "1"]
[TimeControl "40/5400+30:1800+30"]

1. e4 {[%emt 0:00:00]} e5 {[%emt 0:00:00]} 2. Nf3 {[%emt 0:00:00]} Nf6 {[%emt 0:00:00]} 3. d4 {[%emt 0:00:00]} d6 {[%emt 0:00:00]} 4. Nc3 {[%emt 0:00:31]} exd4 {[%emt 0:00:04]} 5. Nxd4 {[%emt 0:00:03]} Be7 {[%emt 0:00:03]} 6. Bf4 {[%emt 0:00:07]} O-O {[%emt 0:00:54]} 7. Qd2 {[%emt 0:00:10]} Nc6 {[%emt 0:03:04]} 8. O-O-O {[%emt 0:00:09]} Nxd4 {[%emt 0:06:24]} 9. Qxd4 {[%emt 0:00:08]} Be6 {[%emt 0:01:27]} 10. Kb1 {[%emt 0:00:14]} Nd7 {[%emt 0:01:02]} 11. Nd5 {[%emt 0:05:50]} Bxd5 {[%emt 0:03:29]} 12. exd5 {[%emt 0:01:47]} Bf6 {[%emt 0:02:19]} 13. Qd2 {[%emt 0:01:31]} Nc5 {[%emt 0:03:38]} 14. Be3 {[%emt 0:03:15]} a6 {[%emt 0:06:33]} 15. g4 {[%emt 0:04:03]} Re8 {[%emt 0:10:11]} 16. f4 {[%emt 0:19:54]} Qe7 {[%emt 0:13:50]} 17. Re1 {[%emt 0:12:07]} Ne4 {[%emt 0:06:58]} 18. Qc1 {[%emt 0:04:23]} Nc3+ {[%emt 0:09:45]} 19. bxc3 {[%emt 0:04:00]} Bxc3 {[%emt 0:00:02]} 20. Bd3 {[%emt 0:06:27]} Bxe1 {[%emt 0:00:04]} 21. Rxe1 {[%emt 0:00:05]} c5 {[%emt 0:05:00]} 22. g5 {[%emt 0:06:04]} b5 {[%emt 0:05:28]} 23. c3 {[%emt 0:12:01]} Qb7 {[%emt 0:03:16]} 24. Qc2 {[%emt 0:03:17]} g6 {[%emt 0:02:08]} 25. f5 {[%emt 0:01:37]} c4 {[%emt 0:04:03]} 26. fxg6 {[%emt 0:01:03]} hxg6 {[%emt 0:03:20]} 27. Be4 {[%emt 0:05:07]} b4 {[%emt 0:00:34]} 28. Bd4 {[%emt 0:02:06]} Rab8 {[%emt 0:02:58]} 29. Ka1 {[%emt 0:04:31]} b3 {[%emt 0:02:06]} 30. axb3 {[%emt 0:02:25]} Qxb3 {[%emt 0:02:26]} 31. Rb1 {[%emt 0:00:41]} Qa3+ {[%emt 0:02:21]} 32. Qa2 {[%emt 0:00:05]} Qxa2+ {[%emt 0:00:26]} 33. Kxa2 {[%emt 0:00:04]} Rb5 {[%emt 0:00:02]} 34. Rxb5 {[%emt 0:01:01]} axb5 {[%emt 0:00:41]} 35. Bf3 {[%emt 0:00:04]} Ra8+ 36. Kb2 {[%emt 0:00:50]} Kf8 {[%emt 0:02:00]} 37. Bf6 {[%emt 0:00:41]} Ke8 {[%emt 0:00:17]} 38. Bg4 {[%emt 0:00:05]} Ra5 39. Bf3 {[%emt 0:00:41]} Kd7 {[%emt 0:01:25]} 40. h4 {[%emt 0:00:00]} Ke8 {[%emt 0:00:00]} 41. Bd4 {[%emt 0:02:23]} Ra6 {[%emt 0:04:43]} 42. Bg4 {[%emt 0:04:01]} Ra8 {[%emt 0:01:33]} 43. Bf6 {[%emt 0:04:03]} Ra5 {[%emt 0:02:07]} 44. Bf3 {[%emt 0:16:45]} Ra8 {[%emt 0:00:41]} 45. Bg4 {[%emt 0:00:39]} Ra5 {[%emt 0:00:03]} 46. Bc8 b4 47. Bg4 1/2-1/2

[Event "EYCC Girls-U14 2019"]
[Site "Bratislava"]
[Date "2019.08.09"]
[Round "8.9"]
[White "Mironenko, Galina"]
[Black "Cornileau, Juliette"]
[Result "1-0"]
[ECO "D30"]
[WhiteElo "1995"]
[BlackElo "1805"]
[Annotator "NA"]
[PlyCount "57"]
[EventDate "2019.08.02"]
[EventType "swiss"]
[EventCountry "SVK"]
[SourceTitle "playchess.com"]
[Source "ChessBase"]
[SourceQuality "1"]
[TimeControl "40/5400+30:1800+30"]

1. d4 {[%emt 0:00:00]} d5 {[%emt 0:00:00]} 2. c4 {[%emt 0:00:00]} e6 {[%emt 0:00:00]} 3. Nf3 {[%emt 0:00:11]} c6 {[%emt 0:00:00]} 4. Qc2 {[%emt 0:00:08]} Bd6 {[%emt 0:00:58]} 5. Bg5 {[%emt 0:00:07]} Be7 {[%emt 0:08:25]} 6. Bxe7 {[%emt 0:04:17]} Qxe7 {[%emt 0:01:12]} 7. e3 {[%emt 0:04:10]} Nf6 {[%emt 0:00:41]} 8. Bd3 {[%emt 0:02:22]} O-O {[%emt 0:01:29]} 9. O-O {[%emt 0:02:53]} Nbd7 {[%emt 0:03:09]} 10. Nc3 {[%emt 0:03:55]} h6 {[%emt 0:02:10]} 11. Rfe1 {[%emt 0:03:36]} dxc4 {[%emt 0:05:25]} 12. Bxc4 {[%emt 0:00:45]} b5 {[%emt 0:01:35]} 13. Be2 {[%emt 0:05:47]} a6 {[%emt 0:01:58]} 14. e4 {[%emt 0:07:01]} c5 {[%emt 0:04:02]} 15. d5 {[%emt 0:08:57]} exd5 {[%emt 0:11:48]} 16. exd5 {[%emt 0:03:43]} Qd8 {[%emt 0:04:28]} 17. Rad1 {[%emt 0:07:58]} Bb7 {[%emt 0:03:40]} 18. Qf5 {[%emt 0:05:19]} Nb6 {[%emt 0:05:00]} 19. Bd3 {[%emt 0:13:41]} Bc8 {[%emt 0:14:34]} 20. Qf4 {[%emt 0:02:20]} b4 {[%emt 0:10:25]} 21. Ne4 {[%emt 0:00:48]} Nfxd5 {[%emt 0:01:26]} 22. Qg3 {[%emt 0:03:09]} c4 {[%emt 0:02:21]} 23. Bxc4 {[%emt 0:01:02]} Nxc4 {[%emt 0:01:51]} 24. Rxd5 {[%emt 0:00:17]} Qb6 {[%emt 0:00:52]} 25. b3 {[%emt 0:01:58]} Na3 {[%emt 0:04:31]} 26. Rd6 {[%emt 0:00:47]} Qb8 {[%emt 0:01:36]} 27. Nf6+ {[%emt 0:01:47]} Kh8 {[%emt 0:00:19]} 28. Nh5 {[%emt 0:00:41]} Rg8 {[%emt 0:03:18]} 29. Re8 {[%emt 0:00:27]} 1-0

[Event "EYCC Girls-U14 2019"]
[Site "Bratislava"]
[Date "2019.08.09"]
[Round "8.10"]
[White "Pipiras, Filipa Fortuna"]
[Black "Blokhin, Sofia"]
[Result "1-0"]
[ECO "D35"]
[WhiteElo "1980"]
[BlackElo "1725"]
[Annotator "NA"]
[PlyCount "113"]
[EventDate "2019.08.02"]
[EventType "swiss"]
[EventCountry "SVK"]
[SourceTitle "playchess.com"]
[Source "ChessBase"]
[SourceQuality "1"]
[TimeControl "40/5400+30:1800+30"]

1. d4 {[%emt 0:00:00]} d5 {[%emt 0:00:00]} 2. c4 {[%emt 0:00:20]} e6 {[%emt 0:00:00]} 3. Nc3 {[%emt 0:00:29]} Nf6 {[%emt 0:00:00]} 4. cxd5 {[%emt 0:00:32]} exd5 {[%emt 0:00:01]} 5. Bg5 {[%emt 0:00:34]} Be7 {[%emt 0:00:13]} 6. e3 {[%emt 0:00:23]} O-O {[%emt 0:00:17]} 7. Bd3 {[%emt 0:00:14]} h6 {[%emt 0:00:14]} 8. Bh4 {[%emt 0:00:41]} b6 {[%emt 0:00:32]} 9. Nge2 {[%emt 0:04:12]} Bb7 {[%emt 0:00:28]} 10. O-O {[%emt 0:00:27]} Nbd7 {[%emt 0:01:12]} 11. Rc1 {[%emt 0:01:32]} c5 {[%emt 0:01:03]} 12. Bf5 {[%emt 0:02:27]} a6 {[%emt 0:02:58]} 13. Bxd7 {[%emt 0:05:53]} Qxd7 {[%emt 0:18:38]} 14. Na4 {[%emt 0:02:48]} Qc6 {[%emt 0:03:01]} 15. Qb3 {[%emt 0:06:22]} g5 {[%emt 0:04:08]} 16. Bg3 {[%emt 0:01:30]} Nd7 {[%emt 0:02:36]} 17. dxc5 {[%emt 0:07:11]} Nxc5 {[%emt 0:13:15]} 18. Nxc5 {[%emt 0:06:09]} bxc5 {[%emt 0:03:45]} 19. Nd4 {[%emt 0:01:00]} Qd7 {[%emt 0:00:17]} 20. Nf5 {[%emt 0:05:54]} c4 {[%emt 0:12:56]} 21. Nxe7+ {[%emt 0:06:52]} Qxe7 {[%emt 0:00:10]} 22. Qb6 {[%emt 0:00:07]} f6 {[%emt 0:03:31]} 23. Rfd1 {[%emt 0:01:10]} Rf7 {[%emt 0:03:14]} 24. b3 {[%emt 0:06:57]} Rc8 {[%emt 0:02:24]} 25. bxc4 {[%emt 0:00:51]} dxc4 {[%emt 0:00:18]} 26. Rd4 {[%emt 0:05:19]} c3 {[%emt 0:02:02]} 27. Qb3 {[%emt 0:01:46]} f5 {[%emt 0:06:04]} 28. h3 {[%emt 0:02:36]} Kg7 {[%emt 0:06:57]} 29. Rxc3 {[%emt 0:04:39]} f4 {[%emt 0:07:58]} 30. Rxc8 {[%emt 0:08:03]} Bxc8 {[%emt 0:00:15]} 31. exf4 {[%emt 0:00:33]} Bb7 {[%emt 0:02:21]} 32. Qc3 {[%emt 0:02:38]} Kg8 {[%emt 0:00:14]} 33. fxg5 {[%emt 0:00:51]} hxg5 {[%emt 0:00:24]} 34. Qd2 {[%emt 0:00:45]} Qf6 {[%emt 0:02:04]} 35. Rd8+ {[%emt 0:03:22]} Kg7 {[%emt 0:00:13]} 36. Qd4 {[%emt 0:05:26]} Qxd4 {[%emt 0:00:13]} 37. Rxd4 {[%emt 0:00:06]} Re7 {[%emt 0:00:27]} 38. a4 {[%emt 0:01:18]} Bc6 {[%emt 0:00:15]} 39. Rc4 {[%emt 0:00:39]} Re6 {[%emt 0:00:18]} 40. Bc7 {[%emt 0:00:00]} Bd7 {[%emt 0:00:00]} 41. a5 {[%emt 0:06:39]} Bb5 {[%emt 0:01:59]} 42. Rg4 {[%emt 0:01:59]} Rg6 {[%emt 0:01:15]} 43. Bd8 {[%emt 0:00:52]} Kh6 {[%emt 0:00:34]} 44. Kh2 {[%emt 0:01:04]} Bd7 {[%emt 0:00:37]} 45. Rd4 {[%emt 0:00:11]} Bc6 {[%emt 0:00:32]} 46. Rc4 {[%emt 0:06:31]} Re6 {[%emt 0:01:04]} 47. Rc5 {[%emt 0:00:43]} Bb5 {[%emt 0:02:20]} 48. Bxg5+ {[%emt 0:02:22]} Kg6 {[%emt 0:00:26]} 49. Be3 {[%emt 0:00:18]} Re4 {[%emt 0:00:20]} 50. Rc2 {[%emt 0:00:38]} Ra4 {[%emt 0:00:36]} 51. Bb6 {[%emt 0:00:16]} Re4 {[%emt 0:00:19]} 52. Kg3 {[%emt 0:00:31]} Re5 {[%emt 0:00:19]} 53. h4 {[%emt 0:02:17]} Bd7 {[%emt 0:00:34]} 54. f3 {[%emt 0:01:11]} Bb5 {[%emt 0:00:37]} 55. Rd2 {[%emt 0:00:22]} Re6 {[%emt 0:00:20]} 56. Bd8 {[%emt 0:01:10]} Bc6 {[%emt 0:00:23]} 57. Bc7 {[%emt 0:00:35]} 1-0

[Event "EYCC Girls-U14 2019"]
[Site "Bratislava"]
[Date "2019.08.09"]
[Round "8.11"]
[White "Kozachenko, Maria"]
[Black "Wikar, Martyna"]
[Result "1-0"]
[ECO "B12"]
[WhiteElo "1865"]
[BlackElo "2020"]
[Annotator "NA"]
[PlyCount "71"]
[EventDate "2019.08.02"]
[EventType "swiss"]
[EventCountry "SVK"]
[SourceTitle "playchess.com"]
[Source "ChessBase"]
[SourceQuality "1"]
[TimeControl "40/5400+30:1800+30"]

1. e4 {[%emt 0:00:00]} c6 {[%emt 0:00:00]} 2. d4 {[%emt 0:00:00]} d5 {[%emt 0:00:00]} 3. e5 {[%emt 0:00:08]} c5 {[%emt 0:00:00]} 4. Nf3 {[%emt 0:00:18]} cxd4 {[%emt 0:00:26]} 5. Nxd4 {[%emt 0:00:20]} e6 {[%emt 0:00:39]} 6. c3 {[%emt 0:03:50]} Ne7 {[%emt 0:04:16]} 7. Bd3 {[%emt 0:02:28]} Nbc6 {[%emt 0:01:15]} 8. Nxc6 {[%emt 0:05:43]} Nxc6 {[%emt 0:00:31]} 9. Qe2 {[%emt 0:01:41]} Bc5 {[%emt 0:09:37]} 10. O-O {[%emt 0:03:24]} Qc7 {[%emt 0:02:08]} 11. Bf4 {[%emt 0:02:47]} Be7 {[%emt 0:05:55]} 12. Nd2 {[%emt 0:05:34]} Bd7 {[%emt 0:01:44]} 13. Rfc1 {[%emt 0:04:08]} g5 {[%emt 0:07:56]} 14. Bg3 {[%emt 0:01:04]} h5 {[%emt 0:00:49]} 15. h3 {[%emt 0:02:18]} Qb6 {[%emt 0:09:08]} 16. b4 {[%emt 0:03:15]} g4 {[%emt 0:04:32]} 17. hxg4 {[%emt 0:05:56]} hxg4 {[%emt 0:14:37]} 18. Qxg4 {[%emt 0:05:49]} O-O-O {[%emt 0:01:07]} 19. a4 {[%emt 0:02:49]} Rdg8 {[%emt 0:03:19]} 20. Qf3 {[%emt 0:03:41]} Bh4 {[%emt 0:08:28]} 21. a5 {[%emt 0:04:54]} Qd8 {[%emt 0:04:32]} 22. Bf4 {[%emt 0:09:21]} f6 {[%emt 0:00:44]} 23. exf6 {[%emt 0:04:41]} e5 {[%emt 0:07:07]} 24. Bh2 {[%emt 0:01:28]} Bxf6 {[%emt 0:01:19]} 25. Qxd5 {[%emt 0:05:50]} Qf8 {[%emt 0:02:25]} 26. a6 {[%emt 0:04:14]} b6 {[%emt 0:06:21]} 27. b5 {[%emt 0:02:30]} Rxh2 {[%emt 0:00:47]} 28. Kxh2 {[%emt 0:04:41]} Rh8+ {[%emt 0:00:57]} 29. Kg1 {[%emt 0:00:16]} Qh6 {[%emt 0:01:17]} 30. g3 {[%emt 0:01:28]} Qh2+ {[%emt 0:01:26]} 31. Kf1 {[%emt 0:00:13]} Rd8 {[%emt 0:01:26]} 32. Qf3 {[%emt 0:01:38]} Bg5 {[%emt 0:00:32]} 33. bxc6 {[%emt 0:02:21]} Qh3+ {[%emt 0:00:31]} 34. Qg2 {[%emt 0:02:06]} Bxd2 {[%emt 0:00:26]} 35. cxd7+ {[%emt 0:00:19]} Qxd7 {[%emt 0:00:06]} 36. Qa8+ {[%emt 0:00:31]} 1-0

[Event "EYCC Girls-U14 2019"]
[Site "Bratislava"]
[Date "2019.08.09"]
[Round "8.12"]
[White "Reuter, Elisa"]
[Black "Anacoglu, Cisel"]
[Result "1/2-1/2"]
[ECO "C55"]
[WhiteElo "1930"]
[BlackElo "1869"]
[Annotator "NA"]
[PlyCount "107"]
[EventDate "2019.08.02"]
[EventType "swiss"]
[EventCountry "SVK"]
[SourceTitle "playchess.com"]
[Source "ChessBase"]
[SourceQuality "1"]
[TimeControl "40/5400+30:1800+30"]

1. e4 {[%emt 0:00:00]} e5 {[%emt 0:00:00]} 2. Nf3 {[%emt 0:00:00]} Nc6 {[%emt 0:00:00]} 3. Bc4 {[%emt 0:00:00]} Nf6 {[%emt 0:00:00]} 4. d3 {[%emt 0:00:00]} Be7 {[%emt 0:00:00]} 5. c3 {[%emt 0:00:00]} d6 {[%emt 0:00:10]} 6. Bb3 {[%emt 0:00:11]} O-O {[%emt 0:00:07]} 7. O-O {[%emt 0:00:03]} Na5 {[%emt 0:00:06]} 8. Bc2 {[%emt 0:00:08]} c5 {[%emt 0:00:07]} 9. Nbd2 {[%emt 0:00:06]} Nc6 {[%emt 0:00:08]} 10. Re1 {[%emt 0:00:08]} Re8 {[%emt 0:00:07]} 11. Nf1 {[%emt 0:00:04]} h6 {[%emt 0:00:08]} 12. h3 {[%emt 0:00:11]} Bf8 {[%emt 0:00:13]} 13. Ng3 {[%emt 0:00:05]} g6 {[%emt 0:01:42]} 14. d4 {[%emt 0:09:49]} cxd4 {[%emt 0:09:25]} 15. cxd4 {[%emt 0:00:08]} exd4 {[%emt 0:01:31]} 16. Nxd4 {[%emt 0:00:07]} Nxd4 {[%emt 0:04:01]} 17. Qxd4 {[%emt 0:00:08]} Be6 {[%emt 0:00:35]} 18. Bd2 {[%emt 0:09:32]} Bg7 {[%emt 0:10:39]} 19. Qd3 {[%emt 0:01:46]} Rc8 {[%emt 0:17:56]} 20. Bc3 {[%emt 0:03:47]} Nd7 {[%emt 0:23:26]} 21. Ne2 {[%emt 0:21:44]} Ne5 {[%emt 0:03:02]} 22. Qd1 {[%emt 0:01:49]} d5 {[%emt 0:07:02]} 23. Nd4 {[%emt 0:08:04]} dxe4 {[%emt 0:00:15]} 24. Bxe4 {[%emt 0:01:13]} Bd5 {[%emt 0:03:40]} 25. Bxd5 {[%emt 0:25:42]} Qxd5 {[%emt 0:00:04]} 26. Qe2 {[%emt 0:05:31]} Qd7 {[%emt 0:05:00]} 27. Qb5 {[%emt 0:06:33]} Nc6 {[%emt 0:02:52]} 28. Nxc6 {[%emt 0:00:51]} Bxc3 {[%emt 0:07:06]} 29. bxc3 {[%emt 0:01:46]} Rxe1+ {[%emt 0:00:06]} 30. Rxe1 {[%emt 0:00:05]} Qxc6 {[%emt 0:00:02]} 31. Qxc6 {[%emt 0:00:38]} Rxc6 {[%emt 0:00:01]} 32. Re7 {[%emt 0:00:59]} Rxc3 {[%emt 0:01:31]} 33. Rxb7 {[%emt 0:00:03]} a5 {[%emt 0:00:17]} 34. Rb3 {[%emt 0:03:00]} Rxb3 {[%emt 0:01:24]} 35. axb3 {[%emt 0:00:04]} Kf8 {[%emt 0:00:06]} 36. Kf1 {[%emt 0:00:03]} Ke7 {[%emt 0:00:02]} 37. Ke2 {[%emt 0:00:05]} Kd6 {[%emt 0:00:04]} 38. Kd2 {[%emt 0:00:56]} Kc5 {[%emt 0:00:08]} 39. Kc3 {[%emt 0:00:15]} Kb5 {[%emt 0:04:19]} 40. Kc2 {[%emt 0:00:00]} Kc5 {[%emt 0:00:00]} 41. Kc3 {[%emt 0:00:24]} Kb5 {[%emt 0:01:14]} 42. Kc2 {[%emt 0:00:06]} Kb4 {[%emt 0:04:00]} 43. Kb2 {[%emt 0:00:05]} f6 {[%emt 0:03:37]} 44. g4 {[%emt 0:01:14]} g5 {[%emt 0:03:56]} 45. f3 {[%emt 0:00:38]} Kc5 {[%emt 0:01:16]} 46. Kc3 {[%emt 0:00:07]} Kb5 {[%emt 0:00:24]} 47. Kc2 {[%emt 0:00:10]} Kc6 {[%emt 0:03:11]} 48. Kc3 {[%emt 0:10:54]} Kc5 {[%emt 0:00:16]} 49. Kd3 {[%emt 0:00:12]} Kb4 {[%emt 0:00:31]} 50. Kc2 {[%emt 0:00:09]} Kb5 {[%emt 0:00:28]} 51. Kd3 {[%emt 0:00:43]} Kc5 {[%emt 0:00:09]} 52. Kc3 {[%emt 0:00:06]} Kd5 {[%emt 0:01:04]} 53. Kd3 {[%emt 0:00:16]} Kc5 {[%emt 0:04:50]} 54. Ke4 1/2-1/2

[Event "EYCC Girls-U14 2019"]
[Site "Bratislava"]
[Date "2019.08.09"]
[Round "8.13"]
[White "Lomaia, Diana"]
[Black "Sumarriva Paulin, Laura"]
[Result "1-0"]
[ECO "D20"]
[WhiteElo "1807"]
[BlackElo "1861"]
[Annotator "NA"]
[PlyCount "87"]
[EventDate "2019.08.02"]
[EventType "swiss"]
[EventCountry "SVK"]
[SourceTitle "playchess.com"]
[Source "ChessBase"]
[SourceQuality "1"]
[TimeControl "40/5400+30:1800+30"]

1. d4 {[%emt 0:00:00]} d5 {[%emt 0:00:00]} 2. c4 {[%emt 0:00:00]} dxc4 {[%emt 0:00:00]} 3. e4 {[%emt 0:01:54]} e5 {[%emt 0:00:08]} 4. d5 {[%emt 0:03:49]} Nf6 {[%emt 0:02:22]} 5. Bg5 {[%emt 0:03:10]} c6 {[%emt 0:00:50]} 6. Nc3 {[%emt 0:02:35]} Bb4 {[%emt 0:00:27]} 7. Bxf6 {[%emt 0:05:01]} Qxf6 {[%emt 0:02:02]} 8. Bxc4 {[%emt 0:03:10]} Qg6 {[%emt 0:09:56]} 9. Qf3 {[%emt 0:01:33]} O-O {[%emt 0:00:36]} 10. h3 {[%emt 0:03:36]} Nd7 {[%emt 0:20:44]} 11. Nge2 {[%emt 0:04:33]} Nc5 {[%emt 0:06:31]} 12. a3 {[%emt 0:03:24]} Bxc3+ {[%emt 0:01:44]} 13. Nxc3 {[%emt 0:00:23]} Kh8 {[%emt 0:11:09]} 14. Qg3 {[%emt 0:14:01]} Qxg3 {[%emt 0:13:57]} 15. fxg3 {[%emt 0:00:08]} f5 {[%emt 0:00:37]} 16. O-O {[%emt 0:01:30]} Bd7 {[%emt 0:01:01]} 17. exf5 {[%emt 0:10:49]} Bxf5 {[%emt 0:01:17]} 18. Rad1 {[%emt 0:04:14]} e4 {[%emt 0:13:22]} 19. Ne2 {[%emt 0:04:16]} Bg6 {[%emt 0:04:59]} 20. Nf4 {[%emt 0:01:22]} Bf7 {[%emt 0:01:16]} 21. b4 {[%emt 0:01:27]} cxd5 {[%emt 0:01:19]} 22. Bxd5 {[%emt 0:03:05]} Bxd5 {[%emt 0:00:33]} 23. Rxd5 {[%emt 0:00:36]} Nd3 {[%emt 0:03:34]} 24. Nxd3 {[%emt 0:00:36]} exd3 {[%emt 0:00:05]} 25. Rxd3 {[%emt 0:00:05]} Kg8 {[%emt 0:01:07]} 26. Rd7 {[%emt 0:00:31]} b5 {[%emt 0:00:54]} 27. Rb7 {[%emt 0:01:35]} a6 {[%emt 0:01:14]} 28. Rd1 {[%emt 0:00:58]} Rf7 {[%emt 0:00:25]} 29. Rdd7 {[%emt 0:01:25]} Rxd7 {[%emt 0:00:28]} 30. Rxd7 {[%emt 0:00:02]} a5 {[%emt 0:01:38]} 31. Rb7 {[%emt 0:01:33]} axb4 {[%emt 0:00:08]} 32. axb4 {[%emt 0:00:03]} Ra3 {[%emt 0:00:36]} 33. g4 {[%emt 0:01:24]} Rb3 {[%emt 0:00:15]} 34. Rxb5 {[%emt 0:00:07]} Kf7 {[%emt 0:00:08]} 35. Rb6 {[%emt 0:01:07]} g6 {[%emt 0:01:19]} 36. Kh2 {[%emt 0:07:01]} Ke7 {[%emt 0:00:44]} 37. h4 {[%emt 0:01:06]} Kd7 {[%emt 0:00:33]} 38. Rb7+ {[%emt 0:06:27]} Kc6 {[%emt 0:00:11]} 39. Rxh7 {[%emt 0:00:18]} Rxb4 {[%emt 0:00:06]} 40. Kg3 {[%emt 0:00:00]} Kd5 {[%emt 0:00:00]} 41. Rg7 {[%emt 0:02:45]} Rb3+ {[%emt 0:01:52]} 42. Kf4 {[%emt 0:00:12]} Rb2 {[%emt 0:00:08]} 43. Rxg6 {[%emt 0:00:48]} Rxg2 {[%emt 0:00:09]} 44. Rf6 {[%emt 0:00:07]} 1-0